fUSD/lending_fUSD_20240817
["ID","MTS","AMOUNT","RATE_DAILY","PERIOD"]
[335166402,1723918238748,-1504.2,0.00010899,2]
[335166403,1723918238759,-801.68842365,0.00010899,2]
[335166404,1723918238768,-15123.38627339,0.00010899,2]
[335166405,1723918238779,-2146.34252697,0.00010899,2]
[335166406,1723918238791,-475.14527595,0.00010899,2]
[335166407,1723918238811,-544.37084928,0.00010899,2]
[335166408,1723918238825,-1364.83123837,0.00010899,2]
[335166409,1723918238841,-1698.02186945,0.00010899,2]
[335166410,1723918238853,-279.36,0.00010899,2]
[335166411,1723918239842,-8615.31451337,0.00010899,2]
[335166412,1723918239852,-10741.83551703,0.00010899,2]
[335166413,1723918239863,-4381.55075636,0.00010899,2]
[335166414,1723918239873,-2000.0,0.000109,2]
[335166415,1723918239882,-6715.6828,0.000109,2]
[335166416,1723918239891,-168.91896574,0.000109,2]
[335166417,1723918239902,-2087.30899046,0.000109,2]
[335166418,1723918239915,-1031.00172718,0.000109,2]
[335166419,1723918239927,-9044.16638089,0.000109,2]
[335166420,1723918239941,-2837.74696614,0.000109,2]
[335166421,1723918239953,-123.16220872,0.000109,2]
[335166422,1723918239963,-805.65955879,0.000109,2]
[335166423,1723918239974,-157.52493914,0.000109,2]
[335166424,1723918239995,-648.13461959,0.000109,2]
[335166425,1723918240007,-387.19,0.000109,2]
[335166426,1723918240016,-805.65955873,0.000109,2]
[335166427,1723918240028,-805.65955873,0.000109,2]
[335166428,1723918240037,-805.65955873,0.000109,2]
[335166429,1723918240047,-805.65955873,0.000109,2]
[335166430,1723918240057,-805.65955873,0.000109,2]
[335166431,1723918240068,-805.65955873,0.000109,2]
[335166432,1723918240078,-189.55387216,0.000109,2]
[335166433,1723918240088,-200.0,0.00010907,2]
[335166434,1723918240100,-150.0,0.00010959,2]
[335166435,1723918240113,-2000.0,0.00010959,2]
[335166436,1723918240123,-250.0,0.00010959,2]
[335166437,1723918240133,-1500.0,0.00010959,2]
[335166438,1723918240143,-500.0,0.0001096,2]
[335166439,1723918240154,-500.0,0.0001096,2]
[335166440,1723918240164,-500.0,0.0001096,2]
[335166441,1723918240173,-200.0,0.00010973,2]
[335166442,1723918240183,-200.0,0.00010973,2]
[335166443,1723918240192,-500.0,0.00010996,2]
[335166444,1723918240204,-20386.74116412,0.00010997,2]
[335166445,1723918240216,-12907.36886296,0.00010997,2]
[335166446,1723918240228,-535.85788251,0.00010997,2]
[335166447,1723918240239,-1534.61932229,0.00010997,2]
[335166448,1723918240252,-1352.08206824,0.00010997,2]
[335166449,1723918240264,-696.7690233,0.00010997,2]
[335166450,1723918240275,-18379.33461799,0.00010997,2]
[335166451,1723918240285,-463.43909847,0.00010999,2]
[335166453,1723918240294,-500.0,0.00010999,2]
[335166455,1723918240303,-500.0,0.00010999,2]
[335166457,1723918240313,-500.0,0.00010999,2]
[335166458,1723918240322,-500.0,0.00010999,2]
[335166459,1723918240331,-500.0,0.00010999,2]
[335166460,1723918240341,-500.0,0.00010999,2]
[335166461,1723918240350,-500.0,0.00010999,2]
[335166462,1723918240359,-500.0,0.00010999,2]
[335166463,1723918240369,-500.0,0.00010999,2]
[335166464,1723918240379,-500.0,0.00010999,2]
[335166465,1723918240390,-500.0,0.00010999,2]
[335166466,1723918240400,-500.0,0.00010999,2]
[335166467,1723918240410,-500.0,0.00010999,2]
[335166469,1723918240419,-500.0,0.00010999,2]
[335166471,1723918240428,-500.0,0.00010999,2]
[335166472,1723918240439,-211.76,0.00010999,2]
[335166474,1723918240448,-511.0,0.00011,2]
[335166475,1723918240458,-21738.63754266,0.00011,2]
[335166477,1723918240471,-68963.51653075,0.00011,2]
[335166480,1723918240483,-1818.9,0.00011,2]
[335166482,1723918240493,-320.10297877,0.00011,2]
[335166484,1723918240505,-359.58943198,0.00011,2]
[335166486,1723918240515,-1079.68543797,0.00011,2]
[335166488,1723918240531,-3448.14391642,0.00011,2]
[335166490,1723918240542,-837.74750378,0.00011,2]
[335166492,1723918240553,-2481.97911351,0.00011,2]
[335166495,1723918240574,-338.0226125,0.00011,2]
[335166497,1723918240586,-4285.81638443,0.00011,2]
[335166499,1723918240597,-27089.17785513,0.00011,2]
[335166501,1723918240608,-1617.592005,0.00011,2]
[335166503,1723918240621,-1363.68834929,0.00011,2]
[335166505,1723918240632,-2023.404,0.00011,2]
[335166560,1723918241632,-587.72819476,0.00011,2]
[335166561,1723918241644,-14000.0,0.00011,2]
[335166572,1723918242885,-1325.20799028,0.00011,2]
[335166573,1723918242900,-964.68916673,0.00011,2]
[335166574,1723918242914,-361.01292754,0.00011,2]
[335166576,1723918244376,-2109.7800008,0.00011,2]
[335166577,1723918244388,-1469.59370028,0.00011,2]
[335166578,1723918244399,-1121.87702375,0.00011,2]
[335166579,1723918244416,-532.35328105,0.00011,2]
[335166580,1723918244428,-2807.87428479,0.00011,2]
[335166581,1723918244439,-108123.62571524,0.00011,2]
[335166582,1723918244450,-4986.26623947,0.00011,2]
[335166583,1723918244461,-1058.55765,0.00011,2]
[335166584,1723918244474,-330.5,0.00011,2]
[335166599,1723918245870,-2318.42279138,0.00011,2]
[335166600,1723918245881,-1568.30176497,0.00011,2]
[335166601,1723918245892,-379.89623438,0.00011,2]
[335166602,1723918245903,-765.67486631,0.00011,2]
[335166603,1723918245914,-324.95834368,0.00011,2]
[335166604,1723918245925,-264.49022472,0.00011,2]
[335166605,1723918245936,-959.66047797,0.00011,2]
[335166606,1723918245946,-924.64607863,0.00011,2]
[335166607,1723918245959,-1278.44042038,0.00011,2]
[335166608,1723918245972,-2015.57078776,0.00011,2]
[335166609,1723918245986,-10544.62938039,0.00011,2]
[335166610,1723918246152,-17448.39738042,0.00011,2]
[335166611,1723918246164,-582.27653367,0.00011,2]
[335166612,1723918246182,-422.24066894,0.00011,2]
[335166613,1723918248987,-811.1040038,0.00011,2]
[335166614,1723918248999,-1504.12840545,0.00011,2]
[335166615,1723918249010,-536.94281576,0.00011,2]
[335166616,1723918249022,-470.22347517,0.00011,2]
[335166617,1723918249034,-3589.98717869,0.00011,2]
[335166618,1723918249046,-2152.65565936,0.00011,2]
[335166619,1723918249057,-6154.01807628,0.00011,2]
[335166620,1723918249069,-8571.89705668,0.00011,2]
[335166621,1723918249081,-5177.5175671,0.00011,2]
[335166622,1723918249092,-17714.41253113,0.00011,2]
[335166623,1723918249105,-8849.56618415,0.00011,2]
[335166624,1723918249116,-776.31930374,0.00011,2]
[335166625,1723918263432,500.0,9.9e-05,3]
[335166626,1723918292053,15334.3324,9.9e-05,2]
[335166630,1723918325200,500.0,8.22e-05,2]
[335166631,1723918325829,500.0,8.22e-05,2]
[335166632,1723918325914,275.90031149,9.9e-05,2]
[335166633,1723918325958,500.0,8.22e-05,2]
[335166635,1723918327193,155.0,9.9e-05,2]
[335166638,1723918334892,159.03948499,9.9e-05,2]
[335166639,1723918359674,155.23,8.219e-05,2]
[335166640,1723918388399,616.93,8.219e-05,2]
[335166643,1723918417938,159.9573306,9.9e-05,2]
[335166646,1723918531999,269.44,9.926e-05,2]
[335166647,1723918582472,496.0,9.902e-05,2]
[335166648,1723918616573,768.83,9.881e-05,2]
[335166649,1723918635315,23900.0,9.894e-05,2]
[335166650,1723918637325,1852.42,9.894e-05,2]
[335166651,1723918679177,388.29,9.873e-05,2]
[335166652,1723918683209,2808.39126043,9.881e-05,2]
[335166653,1723918720753,7907.65,9.873e-05,2]
[335166654,1723918731255,250.0,9.873e-05,2]
[335166655,1723918755701,-1080.8,0.0001,3]
[335166657,1723918795310,200.0,9.868e-05,2]
[335166661,1723918908127,620.89,8.219e-05,2]
[335166670,1723919036028,603.2,9.922e-05,2]
[335166672,1723919066456,500.0,9.897e-05,2]
[335166673,1723919116629,23900.0,9.891e-05,2]
[335166675,1723919231752,400.0,9.9e-05,3]
[335166682,1723919239256,205.0,9.8e-05,2]
[335166685,1723919244220,269.44,9.888e-05,2]
[335166690,1723919286929,250.0,9.82e-05,2]
[335166738,1723919408384,165.49,9.78e-05,2]
[335166739,1723919430829,617.82,8.219e-05,2]
[335166761,1723919431943,-300.0,9.999e-05,2]
[335166762,1723919431952,-300.0,9.999e-05,2]
[335166763,1723919431962,-550.0,0.0001,2]
[335166764,1723919431972,-1050.9569659,0.0001,2]
[335166765,1723919431981,-170.5756834,0.0001,2]
[335166766,1723919431991,-219.81,0.0001,2]
[335166767,1723919432000,-900.0,0.0001,3]
[335166768,1723919432009,-456.00400065,0.0001,2]
[335166769,1723919432019,-2699.18931779,0.0001,2]
[335166770,1723919432038,-353.078016,0.0001,2]
[335166771,1723919432050,-2135.00403722,0.0001,2]
[335166772,1723919432064,-1387.53444088,0.0001,2]
[335166773,1723919432134,-925.07724057,0.0001,2]
[335166780,1723919437959,-2575.55880004,0.0001,2]
[335166781,1723919438118,-5115.40000004,0.0001,2]
[335166822,1723919440090,-25283.072957,0.0001,2]
[335166823,1723919440099,-423.56,0.0001002,2]
[335166824,1723919440109,-1400.0,0.000101,3]
[335166825,1723919440118,-1900.0,0.000102,3]
[335166826,1723919440127,-2400.0,0.000103,3]
[335166827,1723919440136,-400.0,0.000104,3]
[335166828,1723919440145,-617.82,0.00010465,2]
[335166829,1723919440155,-400.0,0.000105,3]
[335166830,1723919440167,-2385.52394854,0.00010505,2]
[335166831,1723919440175,-7238.2415,0.0001058,2]
[335166832,1723919440185,-339.2904,0.00010592,2]
[335166833,1723919440194,-400.0,0.000106,3]
[335166834,1723919440203,-180.528769,0.00010656,2]
[335166835,1723919440212,-150.0,0.00010679,2]
[335166836,1723919440221,-190181.73145037,0.0001068,2]
[335166837,1723919440232,-114321.48024214,0.0001068,2]
[335166838,1723919440243,-282.04374506,0.0001068,2]
[335166839,1723919440257,-26641.17337603,0.0001068,2]
[335166840,1723919440269,-17161.17763705,0.0001068,2]
[335166841,1723919440279,-623.12823184,0.00010684,2]
[335166842,1723919440289,-500.0,0.00010684,2]
[335166843,1723919440299,-500.0,0.00010684,2]
[335166844,1723919440308,-500.0,0.00010691,2]
[335166845,1723919440318,-500.0,0.00010691,2]
[335166846,1723919440327,-4582.0363,0.00010692,2]
[335166847,1723919440339,-546.55193506,0.00010692,2]
[335166848,1723919440390,-3079.4616,0.00010692,2]
[335166849,1723919440411,-260.99070916,0.00010692,2]
[335166867,1723919443016,-3949.10195934,0.00010692,2]
[335166874,1723919444554,-2467.1499995,0.00010692,2]
[335166875,1723919444566,-1067.81353758,0.00010692,2]
[335166876,1723919444578,-455.24917089,0.00010692,2]
[335166877,1723919444589,-6272.47793869,0.00010692,2]
[335166878,1723919444600,-367.50292186,0.00010692,2]
[335166879,1723919444611,-586.0,0.00010692,2]
[335166880,1723919444622,-632.93440001,0.00010692,2]
[335166881,1723919444638,-5590.10966965,0.00010692,2]
[335166886,1723919446038,-914.18041574,0.00010692,2]
[335166887,1723919446052,-300.025825,0.00010692,2]
[335166888,1723919446136,-360.08234564,0.00010692,2]
[335166889,1723919446147,-581.02513369,0.00010692,2]
[335166890,1723919446159,-158348.69183819,0.00010692,2]
[335166891,1723919446169,-388.79,0.00010692,2]
[335166892,1723919446179,-1137.861,0.00010692,2]
[335166893,1723919446189,-400.0,0.000107,3]
[335166894,1723919446198,-1028.0,0.000108,3]
[335166895,1723919446207,-21769.0,0.00010802,2]
[335166896,1723919446216,-1257.0,0.00010802,2]
[335166897,1723919446225,-1205.0,0.00010802,2]
[335166898,1723919446234,-622.0,0.00010802,2]
[335166899,1723919446243,-309.34344666,0.00010862,2]
[335166900,1723919446252,-1137.0,0.00010872,2]
[335166901,1723919446261,-446.0,0.00010872,2]
[335166902,1723919446270,-556.0,0.00010872,2]
[335166903,1723919446279,-150.0,0.00010872,2]
[335166904,1723919446288,-810.0,0.00010872,2]
[335166905,1723919446298,-1894.0,0.00010872,2]
[335166906,1723919446307,-150.0,0.00010872,2]
[335166907,1723919446316,-551.0,0.00010872,2]
[335166908,1723919446325,-1171.0,0.00010872,2]
[335166909,1723919446334,-3214.0,0.00010872,2]
[335166910,1723919446343,-247.0,0.00010872,2]
[335166911,1723919446352,-5840.0,0.00010872,2]
[335166912,1723919446361,-1923.0,0.00010872,2]
[335166913,1723919446370,-1543.0,0.00010872,2]
[335166914,1723919446379,-289.0,0.00010872,2]
[335166915,1723919446388,-3726.0,0.00010872,2]
[335166916,1723919446398,-632.8383,0.0001089,2]
[335166917,1723919446407,-155.0,0.00010899,2]
[335166919,1723919446417,-873.0849666,0.000109,2]
[335166921,1723919446426,-329.11,0.000109,2]
[335166924,1723919446436,-187.9344504,0.00010958,2]
[335166926,1723919446445,-1500.0,0.00010959,2]
[335166928,1723919446454,-250.0,0.00010959,2]
[335166930,1723919446463,-150.0,0.00010959,2]
[335166931,1723919446472,-523.02,0.00010959,2]
[335166932,1723919446481,-500.0,0.0001096,2]
[335166933,1723919446490,-500.0,0.0001096,2]
[335166934,1723919446499,-500.0,0.0001096,2]
[335166935,1723919446510,-200.0,0.00010973,2]
[335166936,1723919446519,-420.0,0.00010999,2]
[335166937,1723919446530,-420.0,0.00010999,2]
[335166938,1723919446541,-949.36100898,0.00010999,2]
[335166939,1723919446550,-413.25061816,0.00010999,2]
[335166940,1723919446560,-500.0,0.00010999,2]
[335166941,1723919446569,-230.52,0.00010999,2]
[335166942,1723919446579,-116120.62071043,0.00011,2]
[335166943,1723919446591,-3026.33434644,0.00011,2]
[335166944,1723919446604,-341.13686896,0.00011,2]
[335166945,1723919446615,-1189.02918722,0.00011,2]
[335166946,1723919446626,-555.0,0.00011,2]
[335166947,1723919446638,-1006.12377786,0.00011,2]
[335166948,1723919448022,-904.64662748,0.00011,2]
[335166949,1723919474103,300.0,9.9e-05,3]
[335166952,1723919499753,503.83827913,8.22e-05,2]
[335166953,1723919500089,529.26224593,8.22e-05,2]
[335166954,1723919500777,500.0,8.22e-05,2]
[335166956,1723919560130,483.95,9.953e-05,2]
[335166957,1723919567731,167.46,9.955e-05,2]
[335166967,1723919679569,512.13,9.954e-05,2]
[335166968,1723919686851,35209.54,9.954e-05,2]
[335166969,1723919709760,23900.0,9.953e-05,2]
[335166971,1723919735543,184.44,9.946e-05,2]
[335166973,1723919909875,521.06,9.854e-05,2]
[335166974,1723919930674,446.11,9.853e-05,2]
[335166975,1723919958718,623.53,8.219e-05,2]
[335166976,1723920010041,10000.0,9.903e-05,2]
[335166977,1723920011475,777.23694684,0.00014001,30]
[335166978,1723920058484,179.48,9.84e-05,2]
[335166979,1723920077889,482.56,9.843e-05,2]
[335166980,1723920207936,23900.0,9.838e-05,2]
[335166981,1723920228474,406.24,9.819e-05,2]
[335166982,1723920228738,171.79,9.819e-05,2]
[335166983,1723920249354,500.0,9.843e-05,2]
[335166984,1723920249709,500.0,9.843e-05,2]
[335166985,1723920250043,500.0,9.843e-05,2]
[335166986,1723920250353,500.0,9.843e-05,2]
[335166987,1723920250683,694.0,9.843e-05,2]
[335166988,1723920264862,250.0,9.819e-05,2]
[335166990,1723920295545,155.0,9.943e-05,2]
[335166991,1723920315522,252.44,9.812e-05,2]
[335166997,1723920410329,150.0,9.888e-05,2]
[335166998,1723920417467,279.35,9.939e-05,2]
[335167016,1723920442502,300.0,9.9e-05,3]
[335167017,1723920471508,829.00575266,9.939e-05,2]
[335167018,1723920478823,631.55,8.219e-05,2]
[335167019,1723920526853,2525.29,9.835e-05,2]
[335167022,1723920617301,613.95,9.758e-05,2]
[335167023,1723920632126,-377.86782155,0.0001,2]
[335167024,1723920632137,-172.13217845,0.0001,2]
[335167025,1723920632147,-600.0,0.0001,3]
[335167026,1723920632156,-773.92282386,0.0001,10]
[335167028,1723920632168,-333.00349575,0.0001,2]
[335167030,1723920632177,-479.1221923,0.000101,3]
[335167032,1723920632189,-420.8778077,0.000101,3]
[335167033,1723920632198,-500.0,0.00010165,2]
[335167034,1723920632207,-500.0,0.00010165,2]
[335167035,1723920632216,-1200.0,0.000102,3]
[335167036,1723920632226,-1500.0,0.000103,3]
[335167037,1723920632236,-150.0,0.00010384,2]
[335167038,1723920632246,-300.0,0.00010399,2]
[335167045,1723920632450,-300.0,0.000104,3]
[335167048,1723920632460,-631.55,0.00010466,2]
[335167051,1723920632470,-499.99,0.00010471,2]
[335167053,1723920632479,-300.0,0.000105,3]
[335167055,1723920632489,-477.6679,0.0001058,2]
[335167057,1723920632498,-12902.44106938,0.0001058,2]
[335167060,1723920632514,-916.50168511,0.0001058,2]
[335167062,1723920632524,-3347.07412977,0.0001058,2]
[335167064,1723920632536,-16079.02632499,0.0001058,2]
[335167065,1723920632551,-1042.5,0.0001058,2]
[335167066,1723920632563,-12239.784,0.0001058,2]
[335167067,1723920632574,-488.29864495,0.0001058,2]
[335167068,1723920632592,-1445.77865243,0.0001058,2]
[335167069,1723920632603,-482.99531256,0.0001058,2]
[335167073,1723920638780,-12053.23043998,0.0001058,2]
[335167074,1723920638792,-8173.52989368,0.0001058,2]
[335167075,1723920638803,-5138.05560002,0.0001058,2]
[335167076,1723920638815,-339.1733676,0.0001058,2]
[335167077,1723920638827,-9005.59263688,0.0001058,2]
[335167078,1723920638838,-279.98223538,0.0001058,2]
[335167079,1723920638850,-1781.28071201,0.0001058,2]
[335167080,1723920638861,-265.69,0.0001058,2]
[335167081,1723920638880,-1073.46689526,0.0001058,2]
[335167082,1723920638890,-11930.33310474,0.0001058,2]
[335167083,1723920638901,-1710.00000005,0.0001058,2]
[335167084,1723920638912,-422.93455817,0.0001058,2]
[335167085,1723920638924,-322.82250005,0.0001058,2]
[335167086,1723920638937,-15027.95203699,0.0001058,2]
[335167087,1723920638947,-300.0,0.000106,3]
[335167088,1723920638956,-527.00706835,0.00010699,2]
[335167089,1723920638966,-527.00706835,0.00010699,2]
[335167090,1723920638976,-300.0,0.000107,3]
[335167091,1723920638986,-950.2599,0.000108,2]
[335167092,1723920638996,-5649.97944359,0.000108,2]
[335167093,1723920639006,-335.4322,0.000108,2]
[335167095,1723920639016,-400.0,0.000108,3]
[335167097,1723920639025,-760.3907085,0.00010852,2]
[335167099,1723920639035,-2580.60534,0.0001089,2]
[335167100,1723920639044,-309.42433542,0.0001089,2]
[335167101,1723920639054,-11632.2833,0.000109,2]
[335167102,1723920639063,-1243.4245,0.000109,2]
[335167103,1723920639072,-2064.9736,0.000109,2]
[335167104,1723920639081,-279.75,0.000109,2]
[335167105,1723920639091,-814.37778924,0.00010924,2]
[335167155,1723920646146,-940.87063428,0.00010924,2]
[335167156,1723920647070,-75.99266192,0.00010924,2]
[335167163,1723920861310,250.0,9.976e-05,2]
[335167164,1723920875321,252.48,9.962e-05,2]
[335167166,1723920972580,203.12,9.942e-05,2]
[335167167,1723920981973,639.48,8.219e-05,2]
[335167169,1723921025281,370.75591567,9.962e-05,2]
[335167170,1723921048844,155.0,9.962e-05,2]
[335167171,1723921132793,508.84,9.901e-05,2]
[335167172,1723921154862,23900.0,9.889e-05,2]
[335167173,1723921336602,749.25,9.947e-05,2]
[335167174,1723921341145,749.25,9.973e-05,2]
[335167175,1723921354112,250.0,9.801e-05,2]
[335167176,1723921370979,198.04,9.762e-05,2]
[335167177,1723921384326,2438.864123,9.948e-05,2]
[335167178,1723921451526,249.75,9.926e-05,2]
[335167179,1723921452116,644.15,8.219e-05,2]
[335167180,1723921456538,249.75,9.962e-05,2]
[335167181,1723921472992,203.12,9.792e-05,2]
[335167189,1723921586080,15487.19195063,9.943e-05,2]
[335167190,1723921589644,150.0,9.888e-05,2]
[335167191,1723921612805,592.92,9.748e-05,2]
[335167192,1723921627328,23900.0,9.75e-05,2]
[335167198,1723921667523,10538.92504884,9.943e-05,2]
[335167199,1723921698438,10076.4422,9.926e-05,2]
[335167200,1723921717724,155.0,9.943e-05,2]
[335167201,1723921777688,249.75,9.909e-05,2]
[335167209,1723921832264,-156.65999809,9.999e-05,2]
[335167211,1723921832273,-341.98294941,0.00010009,2]
[335167214,1723921832284,-1026.39824093,0.00010009,2]
[335167216,1723921832295,-457.29170079,0.00010009,2]
[335167220,1723921832307,-1015.81727259,0.00010009,2]
[335167229,1723921832535,-12209.76,0.00010009,2]
[335167231,1723921832546,-598.70534286,0.00010009,2]
[335167233,1723921832562,-1508.69661,0.00010009,2]
[335167268,1723921838253,-155.0,9.999e-05,2]
[335167270,1723921838263,-373.87061222,0.00010009,2]
[335167273,1723921838274,-9904.67585764,0.00010009,2]
[335167274,1723921838284,-83.23022607,0.00010009,2]
[335167279,1723921838509,-1056.42991104,0.00010009,2]
[335167280,1723921838519,-159.60847032,0.00010009,2]
[335167281,1723921838529,-210.6709452,0.00010009,2]
[335167282,1723921838539,-164.42462269,0.00010009,2]
[335167283,1723921838548,-485.32685972,0.00010009,2]
[335167284,1723921838559,-155.17072618,0.00010009,2]
[335167285,1723921838569,-365.91742403,0.00010009,2]
[335167286,1723921838578,-432.47832469,0.00010009,2]
[335167287,1723921838587,-155.0,0.00010026,2]
[335167288,1723921838596,-500.0,0.00010165,2]
[335167289,1723921838606,-500.0,0.00010165,2]
[335167290,1723921838616,-352.6593,0.00010395,2]
[335167291,1723921838626,-322.08,0.00010395,2]
[335167293,1723921838636,-2409.3158,0.00010395,2]
[335167296,1723921838645,-644.15,0.00010465,2]
[335167299,1723921838655,-1081.78,0.00010465,2]
[335167302,1723921838664,-2841.867839,0.00010471,2]
[335167305,1723921838674,-687.35701908,0.00010471,2]
[335167307,1723921838683,-499.99,0.00010473,2]
[335167309,1723921838692,-5321.19,0.00010473,2]
[335167311,1723921838701,-299.99,0.00010473,2]
[335167313,1723921838711,-150.0,0.00010494,2]
[335167315,1723921838720,-4148.35,0.00010494,2]
[335167317,1723921838730,-911.49,0.00010494,2]
[335167319,1723921838739,-3101.93,0.00010494,2]
[335167321,1723921838749,-60524.6144839,0.00010495,2]
[335167323,1723921838758,-4491.2,0.00010495,2]
[335167325,1723921838767,-499.99,0.00010495,2]
[335167327,1723921838776,-51093.3,0.00010495,2]
[335167329,1723921838785,-599.62,0.00010495,2]
[335167331,1723921838794,-11782.206,0.00010495,2]
[335167333,1723921838804,-2112.88261414,0.00010505,2]
[335167335,1723921838813,-3939.02654262,0.00010505,2]
[335167336,1723921838822,-5405.29278811,0.00010505,2]
[335167338,1723921838831,-1739.57017204,0.00010566,2]
[335167340,1723921838840,-4680.16506567,0.00010566,2]
[335167342,1723921838850,-1257.62857871,0.00010566,2]
[335167344,1723921838859,-600.70924328,0.00010566,2]
[335167346,1723921838870,-2502.58566001,0.00010566,2]
[335167348,1723921838879,-2342.45587798,0.00010566,2]
[335167350,1723921838889,-2500.0,0.0001069,2]
[335167352,1723921838898,-3875.99346564,0.00010699,2]
[335167354,1723921838908,-2386.8149171,0.00010699,2]
[335167356,1723921838917,-1298.58278501,0.00010713,2]
[335167357,1723921838927,-852.1,0.00010789,2]
[335167359,1723921838936,-87462.2827,0.0001079,2]
[335167361,1723921838945,-9994.0787,0.00010799,2]
[335167363,1723921838954,-999.99,0.00010799,2]
[335167365,1723921838964,-526.66077073,0.00010799,2]
[335167367,1723921838973,-359.88808667,0.00010799,2]
[335167369,1723921838983,-1074.99055937,0.00010799,2]
[335167371,1723921838992,-11506.2159,0.000108,2]
[335167373,1723921839002,-20853.011,0.000108,2]
[335167375,1723921839012,-290.5689,0.000108,2]
[335167376,1723921839021,-11474.6866,0.000108,2]
[335167378,1723921839031,-1578.72205212,0.000108,2]
[335167380,1723921839041,-401.51974171,0.000108,2]
[335167382,1723921839051,-163.6,0.000108,2]
[335167384,1723921839061,-2580.60534,0.0001081,2]
[335167386,1723921839071,-1592.06824958,0.0001082,2]
[335167388,1723921839083,-359.88808664,0.00010824,2]
[335167390,1723921839092,-2580.60534,0.0001083,2]
[335167392,1723921839102,-359.88808664,0.0001085,2]
[335167394,1723921839112,-649.86351287,0.00010852,2]
[335167396,1723921839122,-3726.0,0.00010853,2]
[335167398,1723921839131,-1673.0,0.00010853,2]
[335167400,1723921839142,-2188.894,0.00010853,2]
[335167402,1723921839152,-150.99,0.00010861,2]
[335167404,1723921839161,-150.99,0.00010861,2]
[335167406,1723921839170,-203.84181927,0.00010861,2]
[335167407,1723921839180,-493.73403565,0.00010861,2]
[335167409,1723921839189,-628.95048865,0.00010861,2]
[335167411,1723921839199,-151.0,0.00010861,2]
[335167413,1723921839208,-240.810712,0.00010861,2]
[335167415,1723921839218,-240.810712,0.00010861,2]
[335167417,1723921839228,-151.0,0.00010861,2]
[335167419,1723921839239,-151.0,0.00010861,2]
[335167421,1723921839248,-151.0,0.00010861,2]
[335167422,1723921839257,-151.0,0.00010861,2]
[335167423,1723921839266,-151.0,0.00010861,2]
[335167424,1723921839276,-164.608028,0.00010861,2]
[335167425,1723921839285,-151.0,0.00010861,2]
[335167426,1723921839295,-164.608028,0.00010861,2]
[335167427,1723921839304,-798.04759,0.00010861,2]
[335167428,1723921839314,-798.04759,0.00010861,2]
[335167429,1723921839323,-151.0,0.00010861,2]
[335167430,1723921839333,-179.462213,0.00010861,2]
[335167432,1723921839343,-179.462213,0.00010861,2]
[335167434,1723921839353,-151.0,0.00010861,2]
[335167436,1723921839362,-151.0,0.00010861,2]
[335167438,1723921839371,-151.0,0.00010861,2]
[335167440,1723921839380,-218.91005949,0.00010862,2]
[335167442,1723921839389,-357.45302385,0.00010862,2]
[335167444,1723921839399,-155.0,0.00010862,2]
[335167446,1723921839410,-380.32741541,0.00010862,2]
[335167448,1723921839420,-328.33768382,0.00010862,2]
[335167449,1723921839429,-155.0,0.00010862,2]
[335167452,1723921839439,-203.41395605,0.00010862,2]
[335167453,1723921839449,-155.0,0.00010862,2]
[335167455,1723921839458,-155.0,0.00010862,2]
[335167457,1723921839468,-367.98538424,0.00010862,2]
[335167459,1723921839479,-2580.60535,0.0001087,2]
[335167461,1723921839487,-359.88808664,0.00010875,2]
[335167463,1723921839497,-157.70095368,0.00010888,2]
[335167465,1723921839506,-261.3631759,0.00010888,2]
[335167467,1723921839515,-197.1386879,0.00010888,2]
[335167469,1723921839525,-178.21145958,0.00010888,2]